fUSD/lending_fUSD_20240717
["ID","MTS","AMOUNT","RATE_DAILY","PERIOD"]
[332465013,1721208633080,-500.0,0.00013999,2]
[332465014,1721208633089,-500.0,0.00013999,2]
[332465015,1721208633099,-500.0,0.00013999,2]
[332465016,1721208633108,-327.46029768,0.00013999,2]
[332465017,1721208633117,-500.0,0.00013999,2]
[332465018,1721208633126,-500.0,0.00013999,2]
[332465019,1721208633136,-500.0,0.00013999,2]
[332465020,1721208633145,-500.0,0.00013999,2]
[332465021,1721208633154,-500.0,0.00013999,2]
[332465022,1721208633163,-500.0,0.00013999,2]
[332465023,1721208633173,-500.0,0.00013999,2]
[332465024,1721208633182,-500.0,0.00013999,2]
[332465025,1721208633194,-500.0,0.00013999,2]
[332465026,1721208633203,-500.0,0.00013999,2]
[332465027,1721208633216,-500.0,0.00013999,2]
[332465028,1721208633227,-500.0,0.00013999,2]
[332465029,1721208633236,-500.0,0.00013999,2]
[332465030,1721208633245,-500.0,0.00013999,2]
[332465031,1721208633256,-500.0,0.00013999,2]
[332465032,1721208633266,-500.0,0.00013999,2]
[332465033,1721208633275,-500.0,0.00013999,2]
[332465034,1721208633285,-500.0,0.00013999,2]
[332465035,1721208633294,-500.0,0.00013999,2]
[332465036,1721208633304,-500.0,0.00013999,2]
[332465037,1721208633313,-500.0,0.00013999,2]
[332465038,1721208633322,-500.0,0.00013999,2]
[332465039,1721208633331,-500.0,0.00013999,2]
[332465040,1721208633340,-500.0,0.00013999,2]
[332465041,1721208633352,-500.0,0.00013999,2]
[332465042,1721208633362,-583.26770103,0.00013999,2]
[332465043,1721208633372,-500.0,0.00013999,2]
[332465044,1721208633381,-500.0,0.00013999,2]
[332465045,1721208633391,-500.0,0.00013999,2]
[332465046,1721208633400,-500.0,0.00013999,2]
[332465047,1721208633410,-500.0,0.00013999,2]
[332465048,1721208633419,-500.0,0.00013999,2]
[332465049,1721208633429,-500.0,0.00013999,2]
[332465050,1721208633438,-402.56264683,0.00013999,2]
[332465051,1721208633448,-293.00000729,0.00013999,2]
[332465052,1721208633457,-500.0,0.00013999,2]
[332465053,1721208633468,-500.0,0.00013999,2]
[332465054,1721208633477,-544.67913386,0.00013999,2]
[332465055,1721208633487,-500.0,0.00013999,2]
[332465056,1721208633496,-640.63910095,0.00013999,2]
[332465057,1721208633506,-499.99999999,0.00013999,2]
[332465058,1721208633515,-500.0,0.00013999,2]
[332465059,1721208633524,-500.0,0.00013999,2]
[332465060,1721208633533,-500.0,0.00013999,2]
[332465061,1721208633542,-500.0,0.00013999,2]
[332465062,1721208633551,-500.0,0.00013999,2]
[332465063,1721208633561,-500.0,0.00013999,2]
[332465064,1721208633570,-500.0,0.00013999,2]
[332465065,1721208633579,-500.0,0.00013999,2]
[332465066,1721208633589,-500.0,0.00013999,2]
[332465067,1721208633598,-500.0,0.00013999,2]
[332465068,1721208633607,-500.0,0.00013999,2]
[332465069,1721208633617,-299.99999999,0.00013999,2]
[332465070,1721208633626,-500.0,0.00013999,2]
[332465071,1721208633635,-150.0,0.00013999,2]
[332465072,1721208633644,-318557.50179156,0.00014,2]
[332465073,1721208633657,-2756.11977575,0.00014,2]
[332465074,1721208633685,348.0,0.0001397,30]
[332465075,1721208633698,-9143.48869534,0.00014,2]
[332465076,1721208633710,-6286.357445,0.00014,2]
[332465077,1721208633724,-289.3455407,0.00014,2]
[332465078,1721208633736,-50395.9278722,0.00014,2]
[332465079,1721208633747,-603.38328281,0.00014,2]
[332465080,1721208633759,-5790.97463524,0.00014,2]
[332465081,1721208633770,-278.60878409,0.00014,2]
[332465082,1721208633781,-1115.8023317,0.00014,2]
[332465083,1721208633810,156.0,0.0001397,30]
[332465093,1721208638609,-644.74,0.00013699,2]
[332465094,1721208638620,-1973.5122789,0.00013997,2]
[332465095,1721208638629,-10028.39238269,0.00014,2]
[332465096,1721208638641,-399446.8183992,0.00014,2]
[332465097,1721208638696,-605.30007405,0.00014,2]
[332465098,1721208638712,-1800.0,0.00014,2]
[332465099,1721208638775,-691.16057708,0.00014,2]
[332465100,1721208638786,-697.93694306,0.00014,2]
[332465101,1721208638799,-527.3426415,0.00014,2]
[332465102,1721208638810,-2109.83826179,0.00014,2]
[332465103,1721208638822,-657.76259654,0.00014,2]
[332465104,1721208638833,-160621.21795198,0.00014,2]
[332465105,1721208638844,-70115.05910651,0.00014,2]
[332465106,1721208638856,-384.2290936,0.00014,2]
[332465107,1721208638867,-314.43867464,0.00014,2]
[332465108,1721208638879,-912.92382417,0.00014,2]
[332465109,1721208638889,-14038.42116727,0.00014,2]
[332465110,1721208638900,-384.88181269,0.00014,2]
[332465111,1721208638913,-6619.44491532,0.00014,2]
[332465112,1721208638928,-9147.58767893,0.00014,2]
[332465113,1721208638939,-4026.77650109,0.00014,2]
[332465114,1721208638951,-1777.0,0.00014,2]
[332465115,1721208638963,-695.50208201,0.00014,2]
[332465116,1721208638992,-1728.17909024,0.00014,2]
[332465264,1721208640359,-931.89533523,0.00014,2]
[332465267,1721208640371,-2335.77121904,0.00014,2]
[332465269,1721208640383,-1007.52312096,0.00014,2]
[332465275,1721208640436,-578.06080476,0.00014,2]
[332465277,1721208640447,-304.33735203,0.00014,2]
[332465287,1721208640528,-840.77658634,0.00014,2]
[332465289,1721208640539,-1308.35300609,0.00014,2]
[332465291,1721208640551,-2879.74230614,0.00014,2]
[332465293,1721208640562,-100848.67448201,0.00014,2]
[332465305,1721208640674,-844.59940527,0.00014,2]
[332465308,1721208640685,-1663.5002,0.00014,2]
[332465310,1721208640696,-1986.34492326,0.00014,2]
[332465312,1721208640708,-650.69608613,0.00014,2]
[332465314,1721208640719,-349.79,0.00014,2]
[332465316,1721208640730,-25988.15717172,0.00014,2]
[332465318,1721208640741,-13359.8266714,0.00014,2]
[332465567,1721208643483,-1785.68914033,0.00014,2]
[332465569,1721208643495,-690.0,0.00014,2]
[332465582,1721208643626,-274.49314456,0.00014,2]
[332465583,1721208643638,-16343.625645,0.00014,2]
[332465584,1721208643650,-328.04999985,0.00014,2]
[332465585,1721208643663,-1087.72031774,0.00014,2]
[332465596,1721208646432,-1834.85362429,0.00014,2]
[332465597,1721208646584,-1361.88681,0.00014,2]
[332465598,1721208646664,-6573.7288177,0.00014,2]
[332465599,1721208646809,-2282.03649944,0.00014,2]
[332465600,1721208646838,-50757.68618552,0.00014,2]
[332465601,1721208646849,-349.29000001,0.00014,2]
[332465627,1721208745200,200.0,0.00013902,30]
[332465628,1721208745235,200.0,0.00013902,30]
[332465629,1721208745262,200.0,0.00013902,30]
[332465630,1721208745329,200.0,0.00013902,30]
[332465631,1721208745369,200.0,0.00013902,30]
[332465632,1721208751425,150.5,0.0001399,30]
[332465633,1721208751901,150.5,0.0001398,30]
[332465634,1721208752367,150.5,0.0001397,30]
[332465635,1721208816415,9339.51511683,0.00011199,2]
[332465636,1721208823702,6234.64847857,0.00011199,2]
[332465637,1721208861438,219.64961845,0.000139,30]
[332465638,1721208871310,243.0,0.0001399,30]
[332465639,1721208871725,150.5,0.0001399,30]
[332465640,1721208871852,243.0,0.0001398,30]
[332465641,1721208872195,150.5,0.0001398,30]
[332465642,1721208872343,243.0,0.0001397,30]
[332465643,1721208872698,150.5,0.0001397,30]
[332465644,1721208936295,685.81454762,0.00011199,2]
[332465645,1721208972564,597.92187238,0.00011199,2]
[332465646,1721208977669,756.85228558,0.00011199,2]
[332465647,1721208977699,730.35248658,0.00011199,2]
[332465648,1721208992339,195.47,0.0001399,30]
[332465651,1721209037701,540.76250872,0.00011199,2]
[332465652,1721209045893,158.81820275,0.00011199,2]
[332465653,1721209051900,521.94426828,0.00011199,2]
[332465654,1721209109316,253.7629027,0.00011199,2]
[332465655,1721209111525,171.0,0.0001399,30]
[332465656,1721209111980,171.0,0.0001398,30]
[332465657,1721209112478,171.0,0.0001397,30]
[332465658,1721209129668,159.39218237,0.00011199,2]
[332465659,1721209141283,250.0,0.00011199,2]
[332465660,1721209145103,1265.18179458,0.00011199,2]
[332465665,1721209232107,245.66,0.0001399,30]
[332465666,1721209232159,154.0,0.0001399,30]
[332465667,1721209232649,154.0,0.0001398,30]
[332465668,1721209233130,154.0,0.0001397,30]
[332465669,1721209257929,658.95661731,0.00011199,2]
[332465671,1721209270485,244.45088324,0.00011199,2]
[332465672,1721209270903,157.19245598,0.00011199,2]
[332465673,1721209272391,264.49988723,0.00011199,2]
[332465674,1721209273020,239.86078995,0.00011199,2]
[332465675,1721209281969,603.41,0.00010302,2]
[332465676,1721209285997,835.31025714,0.00011199,2]
[332465677,1721209304902,319.35952092,0.00011199,2]
[332465678,1721209331838,356.27356945,0.00011199,2]
[332465679,1721209351858,150.5,0.0001399,30]
[332465680,1721209352412,150.5,0.0001398,30]
[332465681,1721209352892,150.5,0.0001397,30]
[332465683,1721209400854,13404.42,0.00011199,2]
[332465685,1721209548435,309.22805101,0.00011199,2]
[332465686,1721209582684,3113.03843627,0.00011199,2]
[332465687,1721209591991,150.5,0.0001399,30]
[332465688,1721209592369,150.5,0.0001398,30]
[332465689,1721209592837,150.5,0.0001397,30]
[332465690,1721209602493,3110.4112111,0.00011199,2]
[332465691,1721209606186,3715.63902816,0.00011199,2]
[332465742,1721209668286,2847.05462079,0.00011199,2]
[332465743,1721209680260,-500.0,0.00025,120]
[332465744,1721209680300,-565.7965902,0.00025,120]
[332465745,1721209711431,150.5,0.0001399,30]
[332465746,1721209711752,150.5,0.0001399,30]
[332465747,1721209711912,150.5,0.0001398,30]
[332465748,1721209712230,155.27,0.0001398,30]
[332465749,1721209712371,194.63,0.0001397,30]
[332465750,1721209741858,168.36753947,0.00011199,2]
[332465751,1721209757856,3030.633289,0.00011199,2]
[332465754,1721209822471,573.23,0.00010336,2]
[332465760,1721209831557,-263.679541,0.00011541,2]
[332465761,1721209831568,-158.9659215,0.00011599,2]
[332465762,1721209831577,-250.0,0.00012072,2]
[332465763,1721209831587,-2706.81,0.00012153,2]
[332465764,1721209831597,-300.0,0.00012158,2]
[332465765,1721209831606,-3695.2445375,0.00012158,2]
[332465766,1721209831625,-10397.68685306,0.00012158,2]
[332465767,1721209831635,-250.0,0.00012159,2]
[332465768,1721209831644,-200.0,0.00012164,2]
[332465769,1721209831653,-150.0,0.00012173,2]
[332465770,1721209831662,-500.0,0.00012174,2]
[332465771,1721209831671,-23900.0,0.00012174,2]
[332465772,1721209831680,-3635.79,0.00012179,2]
[332465773,1721209831690,-499.99,0.00012179,2]
[332465774,1721209831700,-169.13,0.00012197,2]
[332465775,1721209831710,-4285.64,0.00012201,2]
[332465776,1721209831719,-6748.75,0.00012201,2]
[332465777,1721209831728,-344.88,0.00012229,2]
[332465778,1721209831738,-1161.71,0.00012245,2]
[332465779,1721209831747,-9999.99,0.00012245,2]
[332465780,1721209831759,-205.50428581,0.00012273,2]
[332465781,1721209831768,-761.57,0.00012285,2]
[332465782,1721209831777,-1666.81,0.00012285,2]
[332465783,1721209831786,-150.99,0.00012285,2]
[332465784,1721209831795,-252.95,0.00012285,2]
[332465785,1721209831805,-165.12,0.00012522,2]
[332465786,1721209831814,-573.23,0.00012599,2]
[332465787,1721209831823,-150.0,0.000126,2]
[332465788,1721209831832,-151.69,0.00012675,2]
[332465789,1721209831842,-151.69,0.00012678,2]
[332465790,1721209831853,-2135.59,0.00012678,2]
[332465791,1721209831862,-151.69,0.00012682,2]
[332465792,1721209831871,-151.69,0.00012686,2]
[332465794,1721209831880,-151.69,0.0001269,2]
[332465795,1721209831890,-151.69,0.00012693,2]
[332465796,1721209831899,-151.69,0.00012697,2]
[332465797,1721209831908,-151.69,0.00012701,2]
[332465798,1721209831917,-151.69,0.00012705,2]
[332465799,1721209831926,-151.69,0.00012708,2]
[332465800,1721209831935,-151.69,0.00012712,2]
[332465801,1721209831945,-151.69,0.00012716,2]
[332465802,1721209831954,-151.69,0.00012719,2]
[332465803,1721209831963,-151.69,0.00012723,2]
[332465804,1721209831972,-151.69,0.00012727,2]
[332465805,1721209831981,-151.69,0.00012731,2]
[332465806,1721209831990,-151.69,0.00012734,2]
[332465807,1721209832000,-151.69,0.00012738,2]
[332465808,1721209832009,-550.0,0.00013,2]
[332465809,1721209832018,-255.0,0.00013257,2]
[332465810,1721209832028,-1000.0,0.00013297,2]
[332465811,1721209832037,-150.0,0.000133,2]
[332465812,1721209832047,-700.0,0.000135,4]
[332465813,1721209832056,-173.49,0.0001351,2]
[332465814,1721209832065,-3029.41846704,0.00013574,2]
[332465815,1721209832074,-1146.0,0.00013584,2]
[332465816,1721209832083,-1400.0,0.000136,4]
[332465817,1721209832093,-1159.13,0.00013699,2]
[332465818,1721209832102,-9625.35,0.00013699,2]
[332465819,1721209832111,-844.14,0.00013699,2]
[332465820,1721209832120,-200.0,0.00013699,2]
[332465821,1721209832129,-500.0,0.00013699,2]
[332465822,1721209832138,-250.0,0.00013699,2]
[332465823,1721209832147,-2100.0,0.000137,5]
[332465824,1721209832156,-344.88,0.00013757,2]
[332465825,1721209832164,-2450.376,0.000138,2]
[332465826,1721209832174,-486.2125,0.000138,2]
[332465827,1721209832184,-2800.0,0.000138,5]
[332465828,1721209832193,-2500.0,0.000138,2]
[332465829,1721209832203,-1178.90533397,0.000138,2]
[332465830,1721209832213,-1286.0501,0.000138,2]
[332465831,1721209832222,-3355.7269,0.000138,2]
[332465832,1721209832231,-2474.9630023,0.000138,2]
[332465833,1721209832240,-323.1997,0.000138,2]
[332465834,1721209832252,-761.57,0.0001382,2]
[332465835,1721209832261,-296.79126625,0.00013895,2]
[332465836,1721209832270,-199.2846,0.000139,2]
[332465837,1721209832279,-17899.6526,0.000139,2]
[332465838,1721209832291,-48676.5025,0.000139,2]
[332465839,1721209832300,-1771.1095,0.000139,2]
[332465840,1721209832310,-183.40361487,0.000139,2]
[332465841,1721209832321,-158.66972103,0.000139,2]
[332465842,1721209832330,-2360.86672857,0.000139,2]
[332465843,1721209832339,-3500.0,0.000139,5]
[332465844,1721209832348,-527.1807926,0.000139,2]
[332465845,1721209832357,-1106.12447971,0.000139,2]
[332465846,1721209832366,-321.92743839,0.000139,2]
[332465847,1721209832375,-569.14731294,0.000139,2]
[332465848,1721209832385,-419.00943635,0.00013901,2]
[332465849,1721209832394,-1000.0,0.00013973,5]
[332465850,1721209832404,-298.7669187,0.00013995,2]
[332465851,1721209832413,-160.1722555,0.00013995,2]
[332465852,1721209832422,-200.0,0.00013995,2]
[332465853,1721209832432,-158.17064272,0.00013995,2]
[332465854,1721209832442,-150.16200257,0.00013995,2]
[332465855,1721209832451,-160.1722555,0.00013995,2]
[332465856,1721209832461,-155.16687253,0.00013995,2]
[332465857,1721209832473,-269.58058516,0.00013995,2]
[332465858,1721209832482,-1985.09767323,0.00013999,2]
[332465859,1721209832492,-155.47670102,0.00013999,2]
[332465860,1721209832502,-94969.88727342,0.00014,2]
[332465861,1721209832756,294.59,0.0001399,30]
[332465862,1721209832798,3605.22950586,0.00011199,2]
[332465872,1721209839136,-1003.85047306,0.00014,2]
[332465873,1721209839191,-1172871.05571278,0.00014,2]
[332465874,1721209839203,-847652.78216643,0.00014,2]
[332465875,1721209839385,-918.803945,0.00014,2]
[332465879,1721209839448,-13807.46081107,0.00014,2]
[332465886,1721209839510,-2396.30781176,0.00014,2]
[332465893,1721209839576,-122052.53454313,0.00014,2]
[332465906,1721209839638,-8711.40449033,0.00014,2]
[332465911,1721209839651,-989.22878096,0.00014,2]
[332465915,1721209839662,-952.47687904,0.00014,2]
[332466093,1721209842733,-1985.09767323,0.00013899,2]
[332466094,1721209842742,-67986.25022797,0.00014,2]
[332466095,1721209842822,-378.35875074,0.00014,2]
[332466096,1721209842908,-85319.16736836,0.00014,2]
[332466097,1721209842926,-3078.39999999,0.00014,2]
[332466098,1721209843019,-2294.84336524,0.00014,2]
[332466099,1721209843031,-432.10638637,0.00014,2]
[332466178,1721209845539,-5755.3,0.00014,2]
[332466179,1721209845554,-341.58632942,0.00014,2]
[332466180,1721209845637,-3137.56541814,0.00014,2]
[332466181,1721209845735,-1436.61656224,0.00014,2]
[332466182,1721209845833,-7010.65381119,0.00014,2]
[332466183,1721209845845,-7088.42811936,0.00014,2]
[332466238,1721209952178,150.5,0.00015276,30]
[332466239,1721209952671,150.5,0.00015266,30]
[332466240,1721209953146,150.5,0.00015256,30]
[332466241,1721209973277,31487.84045655,0.00011199,2]
[332466244,1721210070400,183.01,0.0001399,30]
[332466252,1721210161894,1985.09767323,0.00011199,2]
[332466253,1721210176816,1985.09767323,0.00011199,2]
[332466260,1721210215799,534.45148291,0.00011199,2]
[332466261,1721210240318,425.26598198,0.00011199,2]
[332466262,1721210263310,-173.0,0.00011599,2]
[332466263,1721210271817,209.07691188,0.00011199,2]
[332466264,1721210273230,155.0,0.00011199,2]
[332466265,1721210294414,-143.3859,0.00011599,2]
[332466266,1721210294438,-276.6141,0.00012273,2]
[332466268,1721210309998,150.5,0.000147,30]
[332466269,1721210310479,185.29,0.0001469,30]
[332466270,1721210310662,169.51035101,0.00011199,2]
[332466274,1721210315850,2357.89514672,0.00011199,2]
[332466275,1721210320426,155.0,0.00011199,2]
[332466276,1721210337853,155.0,0.00011199,2]
[332466277,1721210350660,155.0,0.00011199,2]
[332466279,1721210379338,10532.41322218,0.00011199,2]
[332466280,1721210393193,551.64,0.00010987,2]
[332466289,1721210463424,625.93982827,0.00011199,2]
[332466295,1721210641694,499.26658211,0.00011199,2]
[332466299,1721210671575,150.5,0.0001399,30]
[332466302,1721210672133,150.5,0.0001398,30]
[332466304,1721210672665,150.5,0.0001397,30]
[332466307,1721210714348,5980.2705056,0.00011199,2]
[332466308,1721210744372,155.5408783,0.00011199,2]
[332466309,1721210751336,160.52360923,0.00011199,2]
[332466313,1721210800817,242.65178278,0.00011199,2]
[332466314,1721210822693,314.27085888,0.00011199,2]
[332466315,1721210844737,155.0,0.00011199,2]
[332466316,1721210858405,158.71970607,0.00011199,2]
[332466317,1721210874698,290.97556414,0.00011199,2]
[332466318,1721210877683,4158.41830309,0.00011199,2]
[332466319,1721210884858,10532.41322218,0.00011199,2]
[332466320,1721210889412,155.09284873,0.00011199,2]
[332466324,1721210972375,4000.69307287,0.00011199,2]
[332466329,1721211008759,556.33,0.00010838,2]
[332466330,1721211031666,-155.21697261,0.00012273,2]
[332466331,1721211031676,-170.68429195,0.00012302,2]
[332466332,1721211031687,-597.34227907,0.00012302,2]
[332466340,1721211032829,-370.5515011,0.00012302,2]
[332466341,1721211032839,-169.13,0.0001273,2]
[332466342,1721211032848,-200.0,0.0001277,2]
[332466343,1721211032857,-543.05,0.00012787,2]
[332466344,1721211032866,-250.0,0.00012791,2]
[332466345,1721211032875,-2267.2684989,0.00012836,2]
[332466346,1721211032886,-1387.10154682,0.00012836,2]
[332466347,1721211032894,-246.0,0.00012836,2]
[332466348,1721211032904,-300.0,0.00012836,2]
[332466349,1721211032913,-23900.0,0.00012837,2]
[332466350,1721211032922,-913.89,0.00012868,2]
[332466351,1721211032931,-190.69,0.00012874,2]
[332466352,1721211032940,-556.33,0.00013102,2]
[332466353,1721211032952,-499.99,0.00013128,2]
[332466354,1721211032961,-300.0,0.00013128,2]
[332466355,1721211032971,-946.77435976,0.00013128,2]
[332466356,1721211032981,-173.49,0.00013261,2]
[332466357,1721211032991,-314.27085888,0.00013472,2]
[332466358,1721211033000,-150.0,0.00013473,2]
[332466359,1721211033010,-1516.3693,0.00013474,2]
[332466360,1721211033019,-7074.21,0.00013474,2]
[332466361,1721211033031,-314.27085888,0.00013516,2]
[332466362,1721211033040,-685.81454762,0.00013574,2]
[332466363,1721211033050,-2937.25640344,0.00013574,2]
[332466364,1721211033060,-618.12870887,0.00013574,2]
[332466365,1721211033070,-206.92,0.000136,2]
[332466366,1721211033079,-250.0,0.00013699,2]
[332466367,1721211033090,-1000.0,0.000137,5]
[332466368,1721211033099,-299.6,0.00013703,2]
[332466369,1721211033109,-419.00943635,0.00013737,2]
[332466371,1721211033120,-545.49350331,0.00013759,2]
[332466373,1721211033129,-1860.323,0.000138,2]
[332466375,1721211033139,-2861.0871,0.000138,2]
[332466377,1721211033148,-2100.0,0.000138,5]
[332466380,1721211033158,-296.7912663,0.00013805,2]
[332466382,1721211033167,-250.0,0.00013822,2]
[332466384,1721211033176,-220.36,0.0001389,2]
[332466386,1721211033185,-205.3567,0.000139,2]
[332466389,1721211033195,-3226.16591672,0.000139,2]
[332466392,1721211033211,-14485.00151532,0.000139,2]
[332466395,1721211033226,-6349.92006796,0.000139,2]
[332466397,1721211033237,-1100.4928,0.000139,2]
[332466399,1721211033246,-1000.0,0.000139,2]
[332466401,1721211033256,-183.40361486,0.000139,2]
[332466403,1721211033265,-1123.27450067,0.000139,2]
[332466405,1721211033275,-2249.3261081,0.000139,2]
[332466407,1721211033285,-405.42943556,0.000139,5]
[332466409,1721211033296,-615.37362234,0.000139,5]
[332466411,1721211033308,-2179.1969421,0.000139,5]
[332466413,1721211033317,-338.0430579,0.000139,2]
[332466416,1721211033329,-1032.6424,0.000139,2]
[332466418,1721211033339,-689.55768541,0.000139,2]
[332466420,1721211033353,-439.75685669,0.000139,2]
[332466422,1721211033362,-322.01472001,0.000139,2]
[332466424,1721211033371,-200.0,0.00013941,2]
[332466426,1721211033381,-534.5,0.0001396,2]
[332466428,1721211033390,-1000.0,0.00013973,5]
[332466430,1721211033400,-175.3494189,0.0001399,2]
[332466432,1721211033410,-334.09083379,0.00013999,2]
[332466433,1721211033419,-173.35110588,0.00013999,2]
[332466434,1721211033428,-227.39291056,0.00013999,2]
[332466435,1721211033437,-227.39291056,0.00013999,2]
[332466436,1721211033447,-19649.39918542,0.00013999,2]
[332466437,1721211033456,-18080.26150119,0.00014,2]
[332466438,1721211033467,-13501.65778264,0.00014,2]
[332466444,1721211038049,-227.39291056,0.00013989,2]
[332466445,1721211038058,-155.0,0.00013999,2]
[332466446,1721211038067,-888.50325281,0.00014,2]
[332466447,1721211038086,-392453.71226604,0.00014,2]
[332466448,1721211038096,-319.504,0.00014,2]
[332466449,1721211038135,-40353.26705495,0.00014,2]
[332466450,1721211038146,-1172871.05571278,0.00014,2]
[332466451,1721211038157,-272141.87022753,0.00014,2]
[332466452,1721211038167,-175.0,0.00014,2]
[332466474,1721211038381,-1750.0,0.00014,2]
[332466476,1721211038391,-1750.0,0.00014,2]
[332466478,1721211038400,-1750.0,0.00014,2]
[332466480,1721211038410,-1750.0,0.00014,2]
[332466482,1721211038420,-1750.0,0.00014,2]
[332466484,1721211038429,-1750.0,0.00014,2]
[332466486,1721211038439,-420.0,0.0001408,2]
[332466488,1721211038448,-543.05,0.00014386,2]
[332466490,1721211038457,-913.89,0.00014476,2]
[332466492,1721211038467,-616.45345182,0.00014499,2]
[332466494,1721211038476,-3921.75079922,0.000145,2]
[332466496,1721211038486,-255.0,0.00014592,2]
[332466498,1721211038495,-150.0,0.00014799,2]
[332466500,1721211038504,-150.0,0.00014815,2]
[332466502,1721211038513,-150.0,0.00014816,2]
[332466504,1721211038522,-150.0,0.00014817,2]
[332466506,1721211038531,-150.0,0.00014828,2]
[332466508,1721211038540,-150.0,0.00014838,2]
[332466509,1721211038549,-266.79003545,0.00014849,2]
[332466511,1721211038558,-150.0,0.00014852,2]
[332466513,1721211038567,-150.0,0.00014856,2]
[332466515,1721211038576,-271.81527384,0.00014857,2]
[332466517,1721211038586,-150.0,0.00014857,2]
[332466519,1721211038595,-150.0,0.00014865,2]
[332466521,1721211038604,-150.0,0.00014874,2]
[332466523,1721211038613,-150.0,0.00014878,2]
[332466525,1721211038622,-150.0,0.00014879,2]
[332466527,1721211038631,-150.0,0.0001488,2]
[332466529,1721211038641,-150.0,0.00014883,2]
[332466531,1721211038650,-150.0,0.00014886,2]
[332466533,1721211038660,-150.0,0.00014889,2]
[332466535,1721211038669,-150.0,0.0001489,2]
[332466537,1721211038678,-150.0,0.00014892,2]
[332466539,1721211038688,-150.0,0.00014894,2]
[332466541,1721211038696,-150.0,0.00014896,2]
[332466543,1721211038706,-150.0,0.00014897,2]
[332466545,1721211038715,-150.0,0.00014897,2]
[332466546,1721211038724,-150.0,0.00014901,2]
[332466548,1721211038734,-150.0,0.00014909,2]
[332466550,1721211038743,-150.0,0.00014919,2]
[332466552,1721211038752,-150.0,0.00014919,2]
[332466554,1721211038761,-300.0,0.00014925,2]
[332466556,1721211038770,-150.0,0.00014926,2]
[332466558,1721211038779,-150.0,0.00014928,2]
[332466560,1721211038788,-300.0,0.00014933,2]
[332466562,1721211038797,-150.0,0.00014934,2]
[332466564,1721211038807,-150.0,0.00014935,2]
[332466566,1721211038816,-150.0,0.00014952,2]
[332466568,1721211038825,-150.0,0.00014955,2]
[332466570,1721211038835,-150.0,0.00014958,2]
[332466572,1721211038844,-300.0,0.00014962,2]
[332466574,1721211038853,-350.11143717,0.00014966,2]
[332466576,1721211038862,-1500.0,0.00014967,2]
[332466578,1721211038872,-150.0,0.00014968,2]
[332466580,1721211038881,-150.0,0.00014968,2]
[332466582,1721211038890,-150.0,0.00014974,2]
[332466584,1721211038899,-300.0,0.00014977,2]
[332466586,1721211038908,-150.0,0.00014979,2]
[332466588,1721211038918,-301.30092692,0.00014981,2]
[332466590,1721211038927,-150.0,0.00014981,2]
[332466592,1721211038936,-150.0,0.00014985,2]
[332466594,1721211038945,-150.0,0.0001499,2]
[332466596,1721211038957,-716.99836668,0.00014993,2]
[332466598,1721211038967,-150.0,0.00014996,2]
[332466600,1721211038976,-150.0,0.00014997,2]
[332466602,1721211038987,-155.0,0.00014999,2]
[332466604,1721211038998,-600.0,0.00015,2]